bitfinex-derivatives/quotes_SOLF0:USTF0_20250227
["timestamp","ask_amount","ask_price","bid_price","bid_amount"]
[1740651219446,0.05334262,141.64,141.61,2.57723758]
[1740651219644,4.947,141.63,141.6,0.04707159]
[1740651219845,0.05334262,141.64,141.6,0.04707159]
[1740651220746,4.9468,141.63,141.6,0.04707159]
[1740651222751,4.9471,141.62,141.6,0.04707159]
[1740651223454,4.9475,141.61,141.6,0.04707159]
[1740651223751,5.8,141.63,141.52,1.9666]
[1740651223949,4.9484,141.59,141.54,4.9497]
[1740651224151,4.9484,141.59,141.55,2.58328186]
[1740651224352,4.9484,141.59,141.56,2.58328186]
[1740651224648,4.9485,141.58,141.57,2.58328186]
[1740651224851,4.9485,141.58,141.56,0.05363428]
[1740651229753,4.9489,141.57,141.56,0.05363428]
[1740651230055,6.9549,141.57,141.49,102.30401515]
[1740651230250,6.9549,141.57,141.52,2.58090349]
[1740651230557,6.9549,141.57,141.53,2.58090349]
[1740651230754,6.9549,141.57,141.52,4.9504]
[1740651230951,6.9549,141.57,141.53,2.57930783]
[1740651231152,0.04659786,141.56,141.53,0.05357731]
[1740651231646,0.04659786,141.56,141.54,2.57770714]
[1740651231845,0.04659786,141.56,141.53,0.05357731]
[1740651232044,0.04659786,141.56,141.54,2.57768518]
[1740651232355,0.04659786,141.56,141.55,4.9496]
[1740651232954,0.04659786,141.56,141.53,0.05357731]
[1740651233156,0.04659786,141.56,141.54,7.52646826]
[1740651233361,0.04659786,141.56,141.54,4.9498]
[1740651238153,6.801,141.62,141.55,4.9496]
[1740651238358,1.8538,141.62,141.56,2.57422193]
[1740651238555,1.8538,141.62,141.57,2.57422193]
[1740651238856,31.22813227,141.62,141.52,0.1999]
[1740651239057,29.37433227,141.62,141.53,2.57452328]
[1740651239358,29.37433227,141.62,141.59,4.9479]
[1740651239748,29.42279913,141.62,141.59,4.99578717]
[1740651241457,0.04846686,141.62,141.59,4.99578717]
[1740651243547,0.04846686,141.62,141.59,0.04788717]
[1740651244660,0.04846686,141.62,141.59,4.99588717]
[1740651246057,0.04846686,141.62,141.6,4.9478]
[1740651246259,0.04846686,141.62,141.59,0.04788717]
[1740651247162,0.04846686,141.62,141.6,2.58208353]
[1740651247350,0.04846686,141.62,141.59,0.04788717]
[1740651247553,0.04846686,141.62,141.6,2.58222147]
[1740651247759,0.04846686,141.62,141.59,4.99588717]
[1740651247960,0.04846686,141.62,141.6,2.58244677]
[1740651248158,0.04846686,141.62,141.59,4.99588717]
[1740651248364,0.04846686,141.62,141.6,2.58351159]
[1740651248661,0.04846686,141.62,141.59,0.04788717]
[1740651249262,4.9478,141.6,141.59,0.04788717]
[1740651249555,0.04846686,141.62,141.54,4.9497]
[1740651249761,4.9485,141.58,141.55,2.5871998]
[1740651249964,4.9485,141.58,141.56,2.5871998]
[1740651250161,4.9485,141.58,141.53,4.9501]
[1740651250462,47.10036887,141.62,141.54,2.58868942]
[1740651250663,0.05202791,141.57,141.55,2.58868942]
[1740651250863,47.10036887,141.62,141.56,2.58868942]
[1740651251164,4.9482,141.59,141.57,2.58868942]
[1740651251362,4.9482,141.59,141.54,4.9497]
[1740651251562,4.9482,141.59,141.57,0.04696363]
[1740651251964,4.99967019,141.6,141.57,0.04696363]
[1740651252165,4.99967019,141.6,141.58,2.59038873]
[1740651252366,4.99967019,141.6,141.57,0.04696363]
[1740651252661,0.05177019,141.6,141.58,2.59042613]
[1740651252863,0.05177019,141.6,141.59,7.53862613]
[1740651253164,0.05177019,141.6,141.59,2.59042613]
[1740651253370,29.42610246,141.6,141.59,2.59042613]
[1740651253666,29.42610246,141.6,141.59,2.589413]
[1740651255165,29.42610246,141.6,141.59,2.58918398]
[1740651255966,0.05177019,141.6,141.59,2.58918398]
[1740651259874,0.05177019,141.6,141.59,2.59036018]
[1740651271983,0.05177019,141.6,141.57,0.04696363]
[1740651272384,4.99987019,141.6,141.57,0.04696363]
[1740651273381,0.05177019,141.6,141.49,13.0825]
[1740651273686,14.00156,141.64,141.49,13.0825]
[1740651274088,4.9487,141.58,141.52,4.9505]
[1740651274483,0.04658862,141.56,141.54,0.05421633]
[1740651274686,4.9489,141.57,141.52,4.9505]
[1740651274886,0.04565711,141.56,141.53,0.04575553]
[1740651283893,0.04565711,141.56,141.54,2.57857968]
[1740651284191,0.04565711,141.56,141.55,2.57857968]
[1740651292001,0.04565711,141.56,141.55,7.52817968]
[1740651293600,0.04565711,141.56,141.55,2.57857968]
[1740651295807,0.04565711,141.56,141.55,2.59385977]
[1740651296001,0.04565711,141.56,141.53,0.04575553]
[1740651296604,4.9499,141.54,141.53,0.04575553]
[1740651298008,1.8802,141.55,141.53,0.04575553]
[1740651299609,6.8298,141.55,141.53,0.04575553]
[1740651300612,4.9499,141.54,141.53,0.04575553]
[1740651300812,1.8802,141.55,141.46,102.32423427]
[1740651301218,1.8802,141.55,141.47,6.30846106]
[1740651301614,1.8802,141.55,141.48,6.30846106]
[1740651301811,0.0459691,141.52,141.49,0.03697636]
[1740651302010,0.0459691,141.52,141.49,6.34543742]
[1740651302319,0.0459691,141.52,141.51,4.9507]
[1740651303919,0.0459691,141.52,141.49,0.03697636]
[1740651304125,0.0459691,141.52,141.5,4.9512]
[1740651304425,0.0459691,141.52,141.5,11.25856748]
[1740651304625,0.0459691,141.52,141.5,4.9512]
[1740651305419,0.0459691,141.52,141.49,0.03697636]
[1740651306421,4.9965691,141.52,141.49,0.03697636]
[1740651308124,4.9965691,141.52,141.5,2.57984923]
[1740651308323,4.9965691,141.52,141.51,2.57984923]
[1740651309517,4.9965691,141.52,141.51,2.57975118]
[1740651312521,0.0459691,141.52,141.49,0.03697636]
[1740651312823,1.8797,141.51,141.41,11.22]
[1740651313025,1.8797,141.51,141.42,4.71357099]
[1740651313226,1.8797,141.51,141.43,4.71357099]
[1740651313519,1.8797,141.51,141.4,1.8954]
[1740651313717,1.8797,141.51,141.44,6.30785169]
[1740651313917,5.00422506,141.47,141.44,6.30785169]
[1740651314218,5.00422506,141.47,141.42,4.954]
[1740651317428,5.00422506,141.47,141.43,4.9536]
[1740651322628,0.05152506,141.47,141.4,1.8954]
[1740651322828,4.9527,141.46,141.42,4.954]
[1740651323730,5.00412506,141.47,141.43,4.9535]
[1740651324728,5.00412506,141.47,141.44,2.54271779]
[1740651324925,5.00412506,141.47,141.43,4.9535]
[1740651325225,4.9528,141.46,141.44,2.54280515]
[1740651325529,0.05152506,141.47,141.4,1.8954]
[1740651325728,0.05152506,141.47,141.41,2.54243527]
[1740651325930,5.00412506,141.47,141.43,4.9535]
[1740651326131,5.00412506,141.47,141.44,2.54243527]
[1740651326325,0.05152506,141.47,141.4,1.8954]
[1740651326526,4.9529,141.46,141.41,2.54172062]
[1740651326722,4.9529,141.46,141.42,2.54172062]
[1740651326923,0.05152506,141.47,141.43,2.54172062]
[1740651327126,0.05152506,141.47,141.44,7.49482062]
[1740651327334,0.05152506,141.47,141.44,4.9531]
[1740651327836,5.00392506,141.47,141.43,4.9537]
[1740651328033,0.05152506,141.47,141.44,2.54135121]
[1740651328235,0.05152506,141.47,141.4,1.8954]
[1740651328434,4.9527,141.46,141.42,4.9538]
[1740651328637,4.9527,141.46,141.43,2.54122683]
[1740651328936,4.9527,141.46,141.44,2.54122683]
[1740651329237,4.9527,141.46,141.42,4.9538]
[1740651329433,5.00402506,141.47,141.43,2.54052365]
[1740651329633,5.00402506,141.47,141.44,2.54052365]
[1740651329834,5.00402506,141.47,141.43,4.9537]
[1740651330134,5.00402506,141.47,141.44,2.54050271]
[1740651330333,5.00402506,141.47,141.43,4.9537]
[1740651330537,5.00402506,141.47,141.44,2.54038571]
[1740651330735,5.00402506,141.47,141.42,4.954]
[1740651331038,5.00402506,141.47,141.43,2.54046769]
[1740651331231,4.9527,141.46,141.44,2.54046769]
[1740651331434,0.05152506,141.47,141.4,1.8954]
[1740651331633,0.05152506,141.47,141.41,2.5405606]
[1740651331831,1.9054,141.49,141.42,2.5405606]
[1740651332033,0.04733478,141.45,141.36,10.97762874]
[1740651332241,4.954,141.43,141.38,4.9553]
[1740651332434,0.04782967,141.42,141.39,2.54063702]
[1740651332635,0.04782967,141.42,141.4,2.54063702]
[1740651332830,5.00192967,141.42,141.41,2.54063702]
[1740651333035,0.04782967,141.42,141.37,4.9556]
[1740651333238,0.04782967,141.42,141.38,2.5415086]
[1740651333440,0.04782967,141.42,141.39,2.5415086]
[1740651333644,0.04782967,141.42,141.4,2.5415086]
[1740651333834,0.04782967,141.42,141.38,4.9552]
[1740651334034,0.04782967,141.42,141.39,2.54204767]
[1740651334242,0.04782967,141.42,141.38,4.9552]
[1740651334436,0.04782967,141.42,141.39,2.54131595]
[1740651334638,0.04782967,141.42,141.38,4.9552]
[1740651334940,0.04782967,141.42,141.39,7.49642867]
[1740651335142,0.04782967,141.42,141.34,5.6406]
[1740651335445,0.04782967,141.42,141.35,2.54068739]
[1740651335639,0.04782967,141.42,141.36,2.54068739]
[1740651335941,0.04782967,141.42,141.37,2.54068739]
[1740651336136,0.04782967,141.42,141.38,2.54068739]
[1740651336342,0.04782967,141.42,141.34,5.6406]
[1740651336343,0.04782967,141.42,141.39,2.54068739]
[1740651336543,0.04782967,141.42,141.4,2.54068739]
[1740651336845,0.04782967,141.42,141.41,7.49432956]
[1740651337044,29.38956773,141.47,141.41,2.53982956]
[1740651337242,29.38956773,141.47,141.42,2.53982956]
[1740651337437,29.38956773,141.47,141.43,2.53982956]
[1740651337746,29.38956773,141.47,141.43,4.9535]
[1740651338444,29.38956773,141.47,141.44,0.04908726]
[1740651338445,0.04459137,141.46,141.44,0.04908726]
[1740651339448,0.04459137,141.46,141.45,2.54205944]
[1740651340047,0.04459137,141.46,141.44,0.04908726]
[1740651340247,0.04459137,141.46,141.45,2.54345961]
[1740651340849,0.04459137,141.46,141.44,0.04908726]
[1740651341250,0.04459137,141.46,141.45,2.54414701]
[1740651341751,0.04459137,141.46,141.45,7.49724701]
[1740651342954,29.38956773,141.5,141.45,2.54333389]
[1740651343154,29.38956773,141.5,141.46,2.54333389]
[1740651343352,29.38956773,141.5,141.47,2.54333389]
[1740651343553,29.38956773,141.5,141.48,2.54333389]
[1740651343750,29.38956773,141.5,141.42,4.69766645]
[1740651343751,29.38956773,141.5,141.49,2.54333389]
[1740651343951,29.38956773,141.5,141.49,7.49503389]
[1740651344554,23.65386773,141.5,141.49,7.49503389]
[1740651344951,0.05034751,141.51,141.5,4.9513]
[1740651345151,0.05034751,141.51,141.5,7.49368731]
[1740651347450,102.02604836,141.52,141.51,4.951]
[1740651347652,102.02604836,141.52,141.51,7.49338731]
[1740651348647,78.37218063,141.52,141.51,7.49338731]
[1740651348851,0.05242589,141.53,141.51,7.49338731]
[1740651349057,0.05242589,141.53,141.52,7.49298731]
[1740651349358,0.05242589,141.53,141.52,2.54238731]
[1740651350751,5.00272589,141.53,141.51,0.05110584]
[1740651352257,0.05242589,141.53,141.51,0.05110584]
[1740651354553,0.05242589,141.53,141.45,102.33652168]
[1740651354859,1.94502589,141.53,141.46,2.54708751]
[1740651355056,4.9517,141.49,141.47,2.54708751]
[1740651355261,4.9517,141.49,141.48,2.54708751]
[1740651356159,4.99608032,141.5,141.48,2.54708751]
[1740651356459,4.99608032,141.5,141.47,0.0454683]
[1740651358360,4.9517,141.49,141.47,0.0454683]
[1740651358755,0.04468032,141.5,141.47,0.0454683]
[1740651358956,0.04468032,141.5,141.39,1.9404]
[1740651359162,4.9521,141.48,141.39,1.9404]
[1740651359963,0.04475288,141.45,141.43,4.9535]
[1740651360164,1.8926,141.53,141.39,1.9404]
[1740651360360,0.05219133,141.45,141.43,0.047452]
[1740651360659,1.8926,141.53,141.43,0.047452]
[1740651360864,4.9522,141.48,141.42,4.954]
[1740651361059,4.9522,141.48,141.47,0.0448509]
[1740651361360,4.9522,141.48,141.39,1.9404]
[1740651361361,4.9522,141.48,141.46,0.047452]
[1740651361563,4.9522,141.48,141.43,4.9535]
[1740651361764,4.99676183,141.48,141.46,0.047452]
[1740651362064,4.9522,141.48,141.42,4.954]
[1740651362262,4.99990772,141.48,141.46,0.04482424]
[1740651362858,0.04770772,141.48,141.39,1.9404]
[1740651363057,80.26478063,141.53,141.36,11.22]
[1740651363254,80.26478063,141.53,141.37,2.54648354]
[1740651363465,80.26478063,141.53,141.38,2.54648354]
[1740651363662,80.26478063,141.53,141.39,2.54648354]
[1740651363865,80.26478063,141.53,141.4,2.54648354]
[1740651364058,0.05174808,141.47,141.41,2.54648354]
[1740651364272,0.05174808,141.47,141.42,2.54648354]
[1740651364464,0.05174808,141.47,141.43,2.54648354]
[1740651364664,4.953,141.46,141.36,4.70470235]
[1740651364862,80.26478063,141.53,141.37,7.25124128]
[1740651365066,0.05177213,141.42,141.38,7.25124128]
[1740651365264,4.9521,141.48,141.39,2.54653893]
[1740651365463,0.04901988,141.41,141.4,2.54653893]
[1740651365659,80.26478063,141.53,141.4,2.54653893]
[1740651365863,4.9518,141.49,141.44,4.9533]
[1740651366163,0.05220083,141.48,141.45,2.54653893]
[1740651366363,0.05220083,141.48,141.46,2.54653893]
[1740651366660,0.05220083,141.48,141.44,4.9533]
[1740651366661,0.05220083,141.48,141.47,2.54653893]
[1740651367457,0.05220083,141.48,141.47,7.49893893]
[1740651371068,0.05220083,141.48,141.47,7.49830634]
[1740651371968,0.05220083,141.48,141.47,2.54590634]
[1740651372974,0.05220083,141.48,141.41,102.36339264]
[1740651373975,4.9531,141.45,141.41,107.31779264]
[1740651374375,0.05180382,141.44,141.41,107.31779264]
[1740651375674,0.05180382,141.44,141.41,102.36339264]
[1740651376473,0.05180382,141.44,141.41,107.31769264]
[1740651376872,0.05180382,141.44,141.41,102.36339264]
[1740651378470,0.05180382,141.44,141.42,4.9541]
[1740651378669,0.05180382,141.44,141.41,102.36339264]
[1740651379076,0.05180382,141.44,141.41,107.31769264]
[1740651379375,0.05180382,141.44,141.41,4.9543]
[1740651379576,0.05180382,141.44,141.37,4.0133]
[1740651379877,0.05180382,141.44,141.39,4.9551]
[1740651380068,0.05180382,141.44,141.38,6.3086749]
[1740651380276,0.05180382,141.44,141.38,11.2641749]
[1740651380470,0.05180382,141.44,141.38,6.3086749]
[1740651380670,0.05180382,141.44,141.34,0.62460018]
[1740651380976,3.8954,141.47,141.34,0.62460018]
[1740651381175,0.05244766,141.4,141.35,6.31439272]
[1740651381476,0.05244766,141.4,141.37,4.9556]
[1740651381979,0.05244766,141.4,141.36,4.9561]
[1740651384779,0.05244766,141.4,141.35,4.9563]
[1740651385177,0.05244766,141.4,141.34,0.62460018]
[1740651386378,0.05244766,141.4,141.36,4.9561]
[1740651387178,0.05244766,141.4,141.39,4.9552]
[1740651387783,4.766e-05,141.4,141.39,4.9552]
[1740651387977,29.4511128,141.45,141.39,32.44]
[1740651388181,29.4511128,141.45,141.39,11.22]
[1740651388378,29.4511128,141.45,141.44,4.9534]
[1740651388589,29.4511128,141.45,141.39,11.22]
[1740651389083,18.7613128,141.45,141.44,4.9534]
[1740651389279,54.75189343,141.46,141.41,0.0514828]
[1740651389486,42.04648696,141.46,141.42,4.70435462]
[1740651389680,42.04648696,141.46,141.42,10.99591729]
[1740651389983,42.04648696,141.46,141.43,4.70207224]
[1740651390186,42.04648696,141.46,141.43,25.90207224]
[1740651390389,42.04648696,141.46,141.43,21.2]
[1740651390590,42.04648696,141.46,141.44,4.9531]
[1740651390789,42.04648696,141.46,141.44,6.29384505]
[1740651390983,42.04648696,141.46,141.44,27.49384505]
[1740651391186,0.04809353,141.46,141.45,6.29384505]
[1740651392484,0.04809353,141.46,141.44,0.04743015]
[1740651395989,4.9531,141.45,141.44,0.04743015]
[1740651402090,0.04809353,141.46,141.44,0.04743015]
[1740651402294,5.00089353,141.46,141.44,0.04743015]
[1740651402797,0.04809353,141.46,141.44,0.04743015]
[1740651406401,0.04809353,141.46,141.44,5.00053015]
[1740651407306,0.04809353,141.46,141.44,0.04743015]
[1740651408002,0.04809353,141.46,141.39,6.30749332]
[1740651408198,1.9296,141.47,141.39,6.30749332]
[1740651408403,4.9536,141.44,141.39,6.30749332]
[1740651408805,1.9296,141.47,141.37,4.9558]
[1740651409002,1.9296,141.47,141.34,0.62460018]
[1740651409209,0.04857362,141.43,141.34,0.62460018]
[1740651409403,1.9296,141.47,141.34,0.62460018]
[1740651409597,1.9296,141.47,141.35,6.3150671]
[1740651409798,0.0476676,141.42,141.35,6.3150671]
[1740651410305,5.0018676,141.42,141.36,6.3150671]
[1740651410806,5.0018676,141.42,141.36,4.9562]
[1740651415112,5.0018676,141.42,141.34,0.62460018]
[1740651415408,5.0018676,141.42,141.37,4.9558]
[1740651415909,0.0476676,141.42,141.37,4.9558]
[1740651416309,5.0017676,141.42,141.37,4.9558]
[1740651416607,5.0017676,141.42,141.36,4.9561]
[1740651417003,0.0476676,141.42,141.37,4.9558]
[1740651417603,5.0017676,141.42,141.36,4.9561]
[1740651419011,5.0017676,141.42,141.34,0.62460018]
[1740651419309,0.0476676,141.42,141.35,6.32248813]
[1740651419712,0.0476676,141.42,141.39,4.9549]
[1740651420410,0.0476676,141.42,141.37,4.9556]
[1740651421004,0.0476676,141.42,141.35,4.72347095]
[1740651421203,0.0476676,141.42,141.36,4.9561]
[1740651421513,4.9547,141.41,141.34,0.62460018]
[1740651421709,4.9547,141.41,141.35,4.9563]
[1740651421915,0.05132931,141.39,141.35,6.32633025]
[1740651422913,0.05132931,141.39,141.36,4.956]
[1740651424108,0.05132931,141.39,141.34,0.62460018]
[1740651424319,0.05132931,141.39,141.35,4.9565]
[1740651425418,0.05132931,141.39,141.34,0.62460018]
[1740651426414,0.05132931,141.39,141.35,6.33888869]
[1740651426810,0.05132931,141.39,141.36,6.33888869]
[1740651427618,0.05132931,141.39,141.38,4.9555]
[1740651428115,0.05132931,141.39,141.35,4.9565]
[1740651428423,0.05132931,141.39,141.34,0.62460018]
[1740651428818,0.05132931,141.39,141.35,6.33439386]
[1740651429617,0.05132931,141.39,141.34,0.62460018]
[1740651430221,0.05132931,141.39,141.35,4.9566]
[1740651430520,0.05132931,141.39,141.34,0.62460018]
[1740651430716,0.05132931,141.39,141.37,4.9555]
[1740651431221,0.05132931,141.39,141.35,6.3315444]
[1740651431720,0.05132931,141.39,141.34,0.62460018]
[1740651431921,0.05132931,141.39,141.35,4.72548106]
[1740651432217,0.00332931,141.39,141.38,4.9555]
[1740651432422,0.00332931,141.39,141.38,16.1755]
[1740651432623,0.00332931,141.39,141.38,37.3955]
[1740651432818,0.00332931,141.39,141.38,43.72177585]
[1740651433420,0.00332931,141.39,141.38,48.44191823]
[1740651434219,45.96581891,141.46,141.45,4.9531]
[1740651435323,45.96581891,141.46,141.44,0.04716926]
[1740651435620,45.96581891,141.46,141.39,12.36518561]
[1740651435825,46.01765658,141.46,141.44,0.04818558]
[1740651436029,46.01765658,141.46,141.41,4.71832836]
[1740651436322,46.01765658,141.46,141.44,0.0504695]
[1740651436527,46.01765658,141.46,141.43,4.9536]
[1740651436724,46.01765658,141.46,141.44,0.04710073]
[1740651436918,46.01765658,141.46,141.44,5.00050073]
[1740651437117,0.05183767,141.46,141.44,5.00050073]
[1740651438428,0.05183767,141.46,141.44,0.04710073]
[1740651439530,3.99843767,141.46,141.39,11.22]
[1740651439731,5.84613767,141.46,141.39,11.22]
[1740651440123,5.84613767,141.46,141.4,6.32505477]
[1740651440323,10.79913767,141.46,141.4,6.32505477]
[1740651440631,5.84613767,141.46,141.4,6.32505477]
[1740651440925,10.79913767,141.46,141.4,6.32505477]
[1740651441127,10.79913767,141.46,141.39,11.22]
[1740651441324,5.84613767,141.46,141.39,11.22]
[1740651442326,5.84613767,141.46,141.39,16.1751]
[1740651443525,5.84613767,141.46,141.39,11.22]
[1740651443725,3.99843767,141.46,141.39,11.22]
[1740651443931,0.05183767,141.46,141.39,11.22]
[1740651444431,0.05183767,141.46,141.4,6.33490002]
[1740651444930,0.05183767,141.46,141.41,6.33490002]
[1740651445126,0.05183767,141.46,141.43,4.9535]
[1740651446431,0.05183767,141.46,141.39,11.22]
[1740651446627,0.05183767,141.46,141.4,4.730987]
[1740651446832,0.05183767,141.46,141.41,4.730987]
[1740651447129,0.05183767,141.46,141.41,6.3327652]
[1740651447529,0.05183767,141.46,141.45,4.9531]
[1740651448125,0.05183767,141.46,141.45,11.2858652]
[1740651449427,0.05183767,141.46,141.45,4.9531]
[1740651449729,0.05183767,141.46,141.39,18.86685725]
[1740651449921,0.05183767,141.46,141.4,4.75240709]
[1740651450122,0.05183767,141.46,141.41,11.11449592]
[1740651450327,0.05183767,141.46,141.41,6.36208883]
[1740651450527,0.05183767,141.46,141.44,4.9534]
[1740651450733,0.05183767,141.46,141.42,6.36208883]
[1740651451235,0.05183767,141.46,141.43,6.36208883]
[1740651451628,0.05183767,141.46,141.45,4.9531]
[1740651453433,0.05183767,141.46,141.45,11.30724361]
[1740651454236,3.767e-05,141.46,141.45,11.30724361]
[1740651459640,6.46969767,141.47,141.46,4.9527]
[1740651459835,9.767e-05,141.47,141.46,16.1727]
[1740651460043,29.42307369,141.58,141.46,37.16493865]
[1740651460238,33.41447369,141.58,141.46,11.22]
[1740651460439,33.41447369,141.58,141.47,4.74074162]
[1740651460440,3.9914,141.58,141.47,4.74074162]
[1740651460640,3.9914,141.58,141.49,4.9516]
[1740651460641,8.94,141.58,141.49,4.9516]
[1740651460841,0.04505254,141.54,141.51,0.05007288]
[1740651463142,16.99764254,141.54,141.51,0.05007288]
[1740651467757,16.99764254,141.54,141.52,4.9503]
[1740651468047,16.99764254,141.54,141.53,11.2]
[1740651468652,16.99764254,141.54,141.53,16.1503]
[1740651468845,14.32808749,141.54,141.53,16.1503]
[1740651469041,14.32808749,141.54,141.53,37.3503]
[1740651469240,8.749e-05,141.54,141.53,37.3503]
[1740651469442,8.749e-05,141.54,141.53,42.07544437]
[1740651469645,8.749e-05,141.54,141.53,43.68176869]
[1740651469954,8.749e-05,141.54,141.53,48.40688721]
[1740651470144,2.253e-05,141.55,141.54,26.1799]
[1740651470341,29.42307369,141.63,141.54,25.95134815]
[1740651470543,29.42307369,141.65,141.59,4.9481]
[1740651470849,29.42307369,141.65,141.6,11.2]
[1740651471255,0.05105889,141.64,141.61,0.05077329]
[1740651474659,0.05105889,141.64,141.61,4.99787329]
[1740651474862,0.05105889,141.64,141.61,0.05077329]
[1740651475656,0.05105889,141.64,141.63,4.9468]
[1740651479863,0.05105889,141.64,141.62,4.9469]
[1740651480066,0.05105889,141.64,141.63,11.2]
[1740651480259,0.05105889,141.64,141.61,6.34178094]
[1740651480863,0.05105889,141.64,141.61,0.05077329]
[1740651481064,0.05105889,141.64,141.58,11.2]
[1740651481364,0.05105889,141.64,141.58,4.9484]
[1740651482367,0.05105889,141.64,141.6,0.04957454]
[1740651482768,0.05105889,141.64,141.6,4.99737454]
[1740651483765,0.05105889,141.64,141.61,4.9474]
[1740651484271,0.05105889,141.64,141.6,0.04957454]
[1740651484469,0.05105889,141.64,141.6,4.99707454]
[1740651484774,0.05105889,141.64,141.6,0.04957454]
[1740651485869,0.05105889,141.64,141.61,4.9474]
[1740651486068,1.87535889,141.68,141.61,4.9474]
[1740651486271,1.9182,141.66,141.61,4.9474]
[1740651486673,1.9182,141.66,141.62,4.9471]
[1740651487163,1.9182,141.66,141.63,0.05216634]
[1740651487368,0.04862829,141.65,141.61,4.9473]
[1740651488273,4.99492829,141.65,141.59,4.948]
[1740651488572,1.9182,141.66,141.62,0.04792067]
[1740651488772,0.05131201,141.63,141.59,4.948]
[1740651489566,0.05131201,141.63,141.61,4.9473]
[1740651489767,0.05131201,141.63,141.55,11.2]
[1740651489973,0.05131201,141.63,141.61,0.05424745]
[1740651490275,0.05131201,141.63,141.61,0.04759429]
[1740651491072,0.05131201,141.63,141.55,11.2]
[1740651492172,0.05131201,141.63,141.56,36.45799]
[1740651493474,0.05131201,141.63,141.62,4.9471]
[1740651494767,0.05131201,141.63,141.61,4.9471]
[1740651495771,0.05131201,141.63,141.61,4.9474]
[1740651496177,0.05131201,141.63,141.62,4.9471]
[1740651497169,0.05131201,141.63,141.57,4.71192044]
[1740651497374,0.05131201,141.63,141.56,36.45799]
[1740651497579,0.05131201,141.63,141.58,6.30856106]
[1740651497781,0.05131201,141.63,141.6,4.9475]
[1740651498677,0.05131201,141.63,141.61,4.9474]
[1740651500080,0.05131201,141.63,141.6,4.9477]
[1740651501374,0.05131201,141.63,141.61,4.9474]
[1740651503578,0.05131201,141.63,141.57,4.72821658]
[1740651503780,0.05131201,141.63,141.56,36.45799]
[1740651503978,0.05131201,141.63,141.57,4.7280035]
[1740651504185,0.05131201,141.63,141.58,6.32995641]
[1740651504683,0.05131201,141.63,141.59,6.32995641]
[1740651504887,0.05131201,141.63,141.62,4.9471]
[1740651506087,0.05131201,141.63,141.57,4.72648748]
[1740651506289,0.05131201,141.63,141.56,36.45799]
[1740651506489,0.05131201,141.63,141.57,4.72896992]
[1740651506692,0.05131201,141.63,141.6,4.9476]
[1740651508186,0.05131201,141.63,141.62,4.9471]
[1740651509189,195.9304515,141.74,141.62,37.11716291]
[1740651509490,167.36835315,141.73,141.63,4.73716291]
[1740651509688,29.42307369,141.69,141.64,4.73716291]
[1740651509891,29.42307369,141.69,141.63,6.33464555]
[1740651510088,29.42307369,141.69,141.64,4.73141034]
[1740651510285,0.05296149,141.67,141.65,0.04994693]
[1740651510891,0.05296149,141.67,141.66,6.33464555]
[1740651511094,0.05296149,141.67,141.66,11.28004555]
[1740651515894,0.05296149,141.67,141.66,6.33464555]
[1740651516995,0.05296149,141.67,141.6,15.93671265]
[1740651517193,3.7766,141.73,141.6,11.2]
[1740651517797,4.9447,141.69,141.61,4.9472]
[1740651518094,0.04467136,141.66,141.6,11.2]
[1740651518490,0.04467136,141.66,141.62,4.9471]
[1740651519996,0.04467136,141.66,141.6,11.2]
[1740651521796,0.04467136,141.66,141.61,4.9474]
[1740651521989,0.04467136,141.66,141.6,11.2]
[1740651522698,0.04467136,141.66,141.62,4.9471]
[1740651525203,0.04467136,141.66,141.61,4.9474]
[1740651526604,0.04467136,141.66,141.62,4.9471]
[1740651528109,0.04467136,141.66,141.6,11.2]
[1740651528307,0.04467136,141.66,141.63,4.9467]
[1740651532019,0.04467136,141.66,141.6,11.2]
[1740651532315,0.04467136,141.66,141.61,4.74317542]
[1740651532517,0.04467136,141.66,141.62,4.74317542]
[1740651532723,0.04467136,141.66,141.65,4.9461]
[1740651534418,0.04467136,141.66,141.65,11.21332827]
[1740651534613,29.42307369,141.71,141.68,4.9448]
[1740651535314,107.9011873,141.75,141.68,4.9448]
[1740651535713,0.052145,141.73,141.7,0.05359123]
[1740651537120,0.052145,141.73,141.7,4.99779123]
[1740651538617,0.052145,141.73,141.7,0.05359123]
[1740651539716,21.212145,141.73,141.63,11.18]
[1740651539911,4.9442,141.71,141.64,4.9462]
[1740651540111,1.9261,141.7,141.64,4.9462]
[1740651540718,0.04715818,141.68,141.64,4.9462]
[1740651543223,0.04715818,141.68,141.6,11.18]
[1740651543522,0.04715818,141.68,141.58,3.864]
[1740651543722,1.9261,141.7,141.61,6.26809998]
[1740651543924,0.05350441,141.64,141.61,6.26809998]
[1740651544124,1.8603,141.66,141.61,6.26809998]